[Event "*** Titled Tuesday Blitz"]
[Site "Chess.com"]
[Date "2019.02.05"]
[Round "10"]
[White "TheBigBadChessDad"]
[Black "Feegus"]
[Result "1-0"]
[WhiteElo "2299"]
[BlackElo "2363"]
[TimeControl "180+2"]
[EndTime "15:30:40 PST"]
[Termination "TheBigBadChessDad won by resignation"]

1. d4 {[%clk 0:03:01.9]} 1... Nf6 {[%clk 0:02:57.5]} 2. Nf3 {[%clk 0:03:02.2]}
2... g6 {[%clk 0:02:57.8]} 3. Bg5 {[%clk 0:03:03.1]} 3... Bg7 {[%clk 0:02:58.8]}
4. Nbd2 {[%clk 0:03:04.2]} 4... d5 {[%clk 0:02:59.1]} 5. e3 {[%clk 0:03:04.4]}
5... O-O {[%clk 0:03:00.6]} 6. Be2 {[%clk 0:03:03.6]} 6... c5 {[%clk 0:03:01.7]}
7. c3 {[%clk 0:03:04.8]} 7... Nc6 {[%clk 0:03:02.6]} 8. O-O {[%clk 0:03:02.7]}
8... Ne4 {[%clk 0:02:58.1]} 9. Bf4 {[%clk 0:03:00.8]} 9... Bf5 {[%clk
0:02:54.4]} 10. h3 {[%clk 0:02:58]} 10... Re8 {[%clk 0:02:52.8]} 11. Bh2 {[%clk
0:02:52.6]} 11... e5 {[%clk 0:02:52]} 12. dxe5 {[%clk 0:02:52.5]} 12... Nxe5
{[%clk 0:02:53.4]} 13. Bxe5 {[%clk 0:02:51]} 13... Bxe5 {[%clk 0:02:54.5]} 14.
Nxe4 {[%clk 0:02:43.8]} 14... Bxe4 {[%clk 0:02:54.5]} 15. Nxe5 {[%clk
0:02:43.4]} 15... Rxe5 {[%clk 0:02:56.4]} 16. Bf3 {[%clk 0:02:40.3]} 16... Qb6
{[%clk 0:02:22.5]} 17. Bxe4 {[%clk 0:02:30.1]} 17... dxe4 {[%clk 0:02:22.3]} 18.
Qb3 {[%clk 0:02:31.2]} 18... Rd8 {[%clk 0:02:03.2]} 19. Rfd1 {[%clk 0:02:30.8]}
19... Ree8 {[%clk 0:01:52.6]} 20. Qxb6 {[%clk 0:02:08.1]} 20... axb6 {[%clk
0:01:53.2]} 21. Kf1 {[%clk 0:02:09.5]} 21... Rd3 {[%clk 0:01:48.7]} 22. Rxd3
{[%clk 0:02:05.6]} 22... exd3 {[%clk 0:01:49.7]} 23. c4 {[%clk 0:02:06.3]} 23...
Rd8 {[%clk 0:01:27.9]} 24. Ke1 {[%clk 0:01:57.2]} 24... f5 {[%clk 0:01:27.4]}
25. Kd2 {[%clk 0:01:55.4]} 25... Kf7 {[%clk 0:01:26.4]} 26. a4 {[%clk 0:01:55]}
26... Ke6 {[%clk 0:01:26.1]} 27. Ra3 {[%clk 0:01:53.6]} 27... Ra8 {[%clk
0:01:23.3]} 28. Kxd3 {[%clk 0:01:53]} 28... Ke5 {[%clk 0:01:24.5]} 29. f4+
{[%clk 0:01:45.8]} 29... Kd6 {[%clk 0:01:23.7]} 30. b3 {[%clk 0:01:41.1]} 30...
g5 {[%clk 0:01:08.8]} 31. Ra2 {[%clk 0:01:23.9]} 31... gxf4 {[%clk 0:01:09.7]}
32. exf4 {[%clk 0:01:24.2]} 32... Rg8 {[%clk 0:01:11.3]} 33. Rd2 {[%clk
0:01:13.8]} 33... Rg3+ {[%clk 0:00:56.5]} 34. Kc2+ {[%clk 0:01:11.5]} 34... Ke6
{[%clk 0:00:51]} 35. Kb2 {[%clk 0:01:03.5]} 35... h5 {[%clk 0:00:48.1]} 36. Ka2
{[%clk 0:01:03.2]} 36... h4 {[%clk 0:00:48.3]} 37. Rb2 {[%clk 0:01:03.1]} 37...
Kd6 {[%clk 0:00:46.9]} 38. Kb1 {[%clk 0:01:03.3]} 38... Rc3 {[%clk 0:00:45.4]}
39. Rd2+ {[%clk 0:00:55.1]} 39... Ke6 {[%clk 0:00:46]} 40. Kb2 {[%clk
0:00:55.3]} 40... Rg3 {[%clk 0:00:46.4]} 41. Ka3 {[%clk 0:00:54.2]} 41... Rg8
{[%clk 0:00:34.6]} 42. Re2+ {[%clk 0:00:51.1]} 42... Kf6 {[%clk 0:00:34]} 43.
Rb2 {[%clk 0:00:40.9]} 43... Rg3 {[%clk 0:00:24.9]} 44. a5 {[%clk 0:00:39.8]}
44... bxa5 {[%clk 0:00:20.7]} 45. Ka4 {[%clk 0:00:41.2]} 45... Rd3 {[%clk
0:00:16.8]} 46. Kxa5 {[%clk 0:00:42]} 46... Rd4 {[%clk 0:00:18.2]} 47. Rf2
{[%clk 0:00:41.1]} 47... Ke6 {[%clk 0:00:19.1]} 48. Kb6 {[%clk 0:00:40]} 48...
Rd3 {[%clk 0:00:17.7]} 49. Rf3 {[%clk 0:00:34.4]} 49... Rd2 {[%clk 0:00:17.1]}
50. Kxc5 {[%clk 0:00:31.2]} 50... Rxg2 {[%clk 0:00:15.7]} 51. Re3+ {[%clk
0:00:32.5]} 51... Kd7 {[%clk 0:00:15.7]} 52. Re5 {[%clk 0:00:32.4]} 52... Rg3
{[%clk 0:00:15.7]} 53. b4 {[%clk 0:00:32.9]} 53... Rxh3 {[%clk 0:00:11.6]} 54.
Rxf5 {[%clk 0:00:34.1]} 54... Rf3 {[%clk 0:00:08.3]} 55. Rf7+ {[%clk 0:00:33.8]}
55... Kc8 {[%clk 0:00:06.1]} 56. b5 {[%clk 0:00:31.5]} 56... h3 {[%clk
0:00:06.1]} 57. b6 {[%clk 0:00:28]} 57... Kd8 {[%clk 0:00:05.5]} 58. Rxb7 {[%clk
0:00:25.3]} 58... Rxf4 {[%clk 0:00:05.8]} 59. Rh7 {[%clk 0:00:26.2]} 59... Rf5+
{[%clk 0:00:06.1]} 60. Kb4 {[%clk 0:00:27.4]} 60... Rf1 {[%clk 0:00:06.8]} 61.
Rxh3 {[%clk 0:00:27.8]} 61... Kd7 {[%clk 0:00:07.9]} 62. Rh6 {[%clk 0:00:23.4]}
62... Rf5 {[%clk 0:00:07.1]} 63. c5 {[%clk 0:00:23.9]} 63... Rf1 {[%clk
0:00:08]} 64. Rh7+ {[%clk 0:00:23.9]} 64... Kc6 {[%clk 0:00:08.9]} 65. Rc7+
{[%clk 0:00:24.9]} 65... Kd5 {[%clk 0:00:09.6]} 66. Kb5 {[%clk 0:00:25.7]} 66...
Rb1+ {[%clk 0:00:10.5]} 67. Ka6 {[%clk 0:00:27]} 67... Ra1+ {[%clk 0:00:11.7]}
68. Kb7 {[%clk 0:00:28.4]} 68... Rb1 {[%clk 0:00:12.8]} 69. c6 {[%clk
0:00:26.7]} 69... Kd6 {[%clk 0:00:13.5]} 70. Rd7+ {[%clk 0:00:27.7]} 70... Kc5
{[%clk 0:00:14.8]} 71. c7 {[%clk 0:00:28.4]} 71... Rxb6+ {[%clk 0:00:15.9]} 72.
Kc8 {[%clk 0:00:25.1]} 72... Rh6 {[%clk 0:00:05]} 73. Rg7 {[%clk 0:00:21.1]}
73... Kc6 {[%clk 0:00:04.6]} 74. Kb8 {[%clk 0:00:21.1]} 74... Rh8+ {[%clk
0:00:02.9]} 75. c8=Q+ {[%clk 0:00:22.1]} 75... Rxc8+ {[%clk 0:00:03.4]} 76. Kxc8
{[%clk 0:00:24]} 1-0

[Event "*** Titled Tuesday Blitz"]
[Site "Chess.com"]
[Date "2019.02.05"]
[Round "10"]
[White "SuperCheese"]
[Black "Vuks91"]
[Result "1-0"]
[WhiteElo "2583"]
[BlackElo "2439"]
[TimeControl "180+2"]
[EndTime "15:30:48 PST"]
[Termination "SuperCheese won by resignation"]

1. d4 {[%clk 0:03:01.9]} 1... Nf6 {[%clk 0:03:00.7]} 2. c4 {[%clk 0:02:58.5]}
2... g6 {[%clk 0:03:01.7]} 3. Nc3 {[%clk 0:02:58.6]} 3... Bg7 {[%clk 0:03:03.2]}
4. e4 {[%clk 0:02:57.8]} 4... O-O {[%clk 0:03:04.3]} 5. Be2 {[%clk 0:02:59.2]}
5... d6 {[%clk 0:03:04.2]} 6. Bg5 {[%clk 0:03:00.6]} 6... h6 {[%clk 0:02:54.8]}
7. Be3 {[%clk 0:02:58.3]} 7... e5 {[%clk 0:02:27.6]} 8. d5 {[%clk 0:02:53.2]}
8... a5 {[%clk 0:02:21.6]} 9. g4 {[%clk 0:02:32]} 9... Nh7 {[%clk 0:02:20.4]}
10. h4 {[%clk 0:02:31.2]} 10... f5 {[%clk 0:02:17.3]} 11. f3 {[%clk 0:02:27.2]}
11... fxg4 {[%clk 0:01:47]} 12. fxg4 {[%clk 0:02:27.2]} 12... Bf6 {[%clk
0:01:48.6]} 13. Bf2 {[%clk 0:02:24.5]} 13... Na6 {[%clk 0:01:41.9]} 14. Qd2
{[%clk 0:02:24.2]} 14... Bg7 {[%clk 0:01:26.2]} 15. Be3 {[%clk 0:02:21.4]} 15...
g5 {[%clk 0:01:18.3]} 16. O-O-O {[%clk 0:02:08]} 16... Nc5 {[%clk 0:01:13.5]}
17. Nh3 {[%clk 0:01:24.8]} 17... Rf4 {[%clk 0:00:48.6]} 18. Nxf4 {[%clk
0:01:21.3]} 18... exf4 {[%clk 0:00:45.9]} 19. Bd4 {[%clk 0:01:21.9]} 19... Nf6
{[%clk 0:00:45.2]} 20. hxg5 {[%clk 0:01:15.8]} 20... hxg5 {[%clk 0:00:47.1]} 21.
e5 {[%clk 0:00:55.5]} 21... Nfe4 {[%clk 0:00:39.8]} 22. Nxe4 {[%clk 0:00:21.4]}
22... Nxe4 {[%clk 0:00:41.7]} 23. Qc2 {[%clk 0:00:21.9]} 23... dxe5 {[%clk
0:00:26.3]} 24. Bg1 {[%clk 0:00:17.2]} 24... Ng3 {[%clk 0:00:21.6]} 25. Qh7+
{[%clk 0:00:17.4]} 25... Kf8 {[%clk 0:00:22.9]} 26. Bc5+ {[%clk 0:00:14.5]}
26... Kf7 {[%clk 0:00:23.9]} 27. Bd3 {[%clk 0:00:15.6]} 27... e4 {[%clk
0:00:21.9]} 28. Bxe4 {[%clk 0:00:14.5]} 28... Nxe4 {[%clk 0:00:23.5]} 29. Qxe4
{[%clk 0:00:15.2]} 29... Qf6 {[%clk 0:00:25.1]} 30. Bd4 {[%clk 0:00:15.3]} 30...
Qg6 {[%clk 0:00:23.2]} 31. Qxg6+ {[%clk 0:00:09]} 31... Kxg6 {[%clk 0:00:25.1]}
32. Bxg7 {[%clk 0:00:10.2]} 32... Kxg7 {[%clk 0:00:26.9]} 33. Rhg1 {[%clk
0:00:10.9]} 33... Bd7 {[%clk 0:00:25.4]} 34. Kc2 {[%clk 0:00:10.8]} 34... Re8
{[%clk 0:00:25.7]} 35. Rde1 {[%clk 0:00:09.3]} 35... Rxe1 {[%clk 0:00:20.1]} 36.
Rxe1 {[%clk 0:00:11.2]} 36... Kf6 {[%clk 0:00:21.3]} 37. Rg1 {[%clk 0:00:11.6]}
37... Ke5 {[%clk 0:00:22.6]} 38. Kd3 {[%clk 0:00:12.2]} 38... b5 {[%clk
0:00:18.3]} 39. b3 {[%clk 0:00:12.5]} 39... c5 {[%clk 0:00:12.6]} 40. dxc6
{[%clk 0:00:12.4]} 40... Bxc6 {[%clk 0:00:13.3]} 41. Re1+ {[%clk 0:00:13.5]}
41... Kd6 {[%clk 0:00:11.9]} 42. Kd4 {[%clk 0:00:14.9]} 42... bxc4 {[%clk
0:00:12.3]} 43. bxc4 {[%clk 0:00:16.4]} 43... Bd7 {[%clk 0:00:10.6]} 44. Re5
{[%clk 0:00:17.6]} 44... f3 {[%clk 0:00:11.8]} 45. Rd5+ {[%clk 0:00:15.4]} 45...
Ke7 {[%clk 0:00:06.9]} 46. Ke3 {[%clk 0:00:14.9]} 46... Bxg4 {[%clk 0:00:03]}
47. Rxg5 {[%clk 0:00:14.6]} 47... Be6 {[%clk 0:00:04.4]} 48. Rxa5 {[%clk
0:00:07.7]} 48... Bxc4 {[%clk 0:00:05.9]} 49. Kxf3 {[%clk 0:00:09]} 49... Kd6
{[%clk 0:00:07.4]} 50. Ke3 {[%clk 0:00:07.6]} 50... Kc6 {[%clk 0:00:07.5]} 51.
Kd4 {[%clk 0:00:07.4]} 51... Kb6 {[%clk 0:00:08]} 52. Ra3 {[%clk 0:00:08.1]}
52... Be6 {[%clk 0:00:08.7]} 53. Kc3 {[%clk 0:00:07.8]} 53... Kb7 {[%clk
0:00:09.2]} 54. Kb2 {[%clk 0:00:09.3]} 54... Bd5 {[%clk 0:00:09.8]} 55. Rg3
{[%clk 0:00:10.7]} 55... Bc6 {[%clk 0:00:11.1]} 56. a3 {[%clk 0:00:11.7]} 56...
Kb6 {[%clk 0:00:12.4]} 57. Rg5 {[%clk 0:00:11.1]} 57... Bb5 {[%clk 0:00:13.3]}
58. Kb3 {[%clk 0:00:11]} 58... Bd7 {[%clk 0:00:14.5]} 59. Kb4 {[%clk 0:00:12.2]}
59... Bc6 {[%clk 0:00:15.2]} 60. Rg6 {[%clk 0:00:13.2]} 60... Kb7 {[%clk
0:00:16.3]} 61. Kc5 {[%clk 0:00:14.3]} 61... Ba4 {[%clk 0:00:16.9]} 62. Rg4
{[%clk 0:00:14.8]} 62... Bd1 {[%clk 0:00:15.7]} 63. Rd4 {[%clk 0:00:15.4]} 63...
Bf3 {[%clk 0:00:14.6]} 64. a4 {[%clk 0:00:15.4]} 64... Ka7 {[%clk 0:00:15.7]}
65. Rd6 {[%clk 0:00:16.2]} 65... Bb7 {[%clk 0:00:16.2]} 66. Kb5 {[%clk
0:00:16.1]} 66... Bc8 {[%clk 0:00:15.3]} 67. Kc5 {[%clk 0:00:14.9]} 67... Bb7
{[%clk 0:00:15.3]} 68. Kb5 {[%clk 0:00:14]} 68... Bc8 {[%clk 0:00:16.4]} 69. Rf6
{[%clk 0:00:07]} 69... Bd7+ {[%clk 0:00:16.7]} 70. Ka5 {[%clk 0:00:07.5]} 70...
Be8 {[%clk 0:00:14.8]} 71. Re6 {[%clk 0:00:07.2]} 71... Bh5 {[%clk 0:00:15.7]}
72. Re7+ {[%clk 0:00:08.5]} 72... Kb8 {[%clk 0:00:17]} 73. Kb6 {[%clk
0:00:09.7]} 73... Kc8 {[%clk 0:00:17.3]} 74. a5 {[%clk 0:00:10.7]} 74... Bf3
{[%clk 0:00:16.9]} 75. a6 {[%clk 0:00:10.9]} 75... Kd8 {[%clk 0:00:17.7]} 76.
Rf7 {[%clk 0:00:07.3]} 76... Bd5 {[%clk 0:00:18.4]} 77. Rf1 {[%clk 0:00:04.7]}
77... Kc8 {[%clk 0:00:18.8]} 78. Rc1+ {[%clk 0:00:05.3]} 1-0

[Event "*** Titled Tuesday Blitz"]
[Site "Chess.com"]
[Date "2019.02.05"]
[Round "10"]
[White "monalize"]
[Black "GrandGlacier"]
[Result "1/2-1/2"]
[WhiteElo "2312"]
[BlackElo "2208"]
[TimeControl "180+2"]
[EndTime "15:31:27 PST"]
[Termination "Game drawn by repetition"]

1. e4 {[%clk 0:03:01.9]} 1... c5 {[%clk 0:02:59.4]} 2. Nf3 {[%clk 0:03:02.1]}
2... e6 {[%clk 0:03:00.1]} 3. d4 {[%clk 0:03:02.2]} 3... cxd4 {[%clk 0:03:02]}
4. Nxd4 {[%clk 0:03:02]} 4... Nc6 {[%clk 0:03:03.6]} 5. Nc3 {[%clk 0:03:01.9]}
5... Qc7 {[%clk 0:03:05]} 6. g3 {[%clk 0:02:59.7]} 6... a6 {[%clk 0:03:05]} 7.
Bg2 {[%clk 0:03:00.3]} 7... Nf6 {[%clk 0:03:06.3]} 8. O-O {[%clk 0:03:00.6]}
8... Be7 {[%clk 0:03:07.5]} 9. Re1 {[%clk 0:02:57]} 9... O-O {[%clk 0:03:08.4]}
10. Nxc6 {[%clk 0:02:56.9]} 10... dxc6 {[%clk 0:03:10.3]} 11. e5 {[%clk
0:02:58]} 11... Rd8 {[%clk 0:03:11.5]} 12. Qe2 {[%clk 0:02:54.6]} 12... Nd5
{[%clk 0:03:11.8]} 13. Bd2 {[%clk 0:02:55.4]} 13... b5 {[%clk 0:02:56.5]} 14. f4
{[%clk 0:02:22.4]} 14... Bb7 {[%clk 0:02:48.7]} 15. Ne4 {[%clk 0:02:23.1]} 15...
c5 {[%clk 0:02:46.4]} 16. c4 {[%clk 0:02:19.8]} 16... bxc4 {[%clk 0:02:20.5]}
17. Qxc4 {[%clk 0:02:18.8]} 17... Nb4 {[%clk 0:02:14.6]} 18. Be3 {[%clk
0:01:54.9]} 18... Bd5 {[%clk 0:01:50.2]} 19. Qe2 {[%clk 0:01:48.2]} 19... c4
{[%clk 0:01:30.1]} 20. Nc3 {[%clk 0:01:11.5]} 20... Nd3 {[%clk 0:01:06.2]} 21.
Red1 {[%clk 0:01:10.8]} 21... Bxg2 {[%clk 0:01:02.3]} 22. Kxg2 {[%clk
0:01:10.5]} 22... Qb7+ {[%clk 0:01:01.3]} 23. Kh3 {[%clk 0:01:10.9]} 23... Qxb2
{[%clk 0:00:54]} 24. Qd2 {[%clk 0:00:42.2]} 24... Bb4 {[%clk 0:00:32.2]} 25.
Qxb2 {[%clk 0:00:35.2]} 25... Nxb2 {[%clk 0:00:33.9]} 26. Rxd8+ {[%clk
0:00:35.6]} 26... Rxd8 {[%clk 0:00:34]} 27. Ne4 {[%clk 0:00:36.4]} 27... Rd3
{[%clk 0:00:23]} 28. Bc5 {[%clk 0:00:34.9]} 28... a5 {[%clk 0:00:22.1]} 29. Rc1
{[%clk 0:00:32.5]} 29... c3 {[%clk 0:00:21.3]} 30. a3 {[%clk 0:00:30.7]} 30...
Bxc5 {[%clk 0:00:20.3]} 31. Nxc5 {[%clk 0:00:30.9]} 31... Re3 {[%clk 0:00:21.3]}
32. Rc2 {[%clk 0:00:31.7]} 32... Kf8 {[%clk 0:00:21.6]} 33. Kg2 {[%clk
0:00:29.5]} 33... Nc4 {[%clk 0:00:21.9]} 34. Na4 {[%clk 0:00:27.4]} 34... Nxa3
{[%clk 0:00:20.4]} 35. Rxc3 {[%clk 0:00:28.5]} 35... Rxc3 {[%clk 0:00:20.1]} 36.
Nxc3 {[%clk 0:00:28.5]} 36... Nc4 {[%clk 0:00:20.5]} 37. Kf3 {[%clk 0:00:29.7]}
37... Ke7 {[%clk 0:00:18]} 38. Ke2 {[%clk 0:00:31.1]} 38... f6 {[%clk
0:00:18.8]} 39. Kd3 {[%clk 0:00:31.5]} 39... Nb6 {[%clk 0:00:18.4]} 40. exf6+
{[%clk 0:00:31.7]} 40... gxf6 {[%clk 0:00:19.1]} 41. Kd4 {[%clk 0:00:32.9]}
41... Kd6 {[%clk 0:00:18.5]} 42. Ne4+ {[%clk 0:00:33.1]} 42... Ke7 {[%clk
0:00:19.7]} 43. Kc5 {[%clk 0:00:34.3]} 43... Nd5 {[%clk 0:00:15.7]} 44. Kb5
{[%clk 0:00:34.6]} 44... Ne3 {[%clk 0:00:15]} 45. Kxa5 {[%clk 0:00:29.4]} 45...
Nf1 {[%clk 0:00:15.8]} 46. h3 {[%clk 0:00:28.9]} 46... f5 {[%clk 0:00:16]} 47.
Ng5 {[%clk 0:00:29.1]} 47... h6 {[%clk 0:00:17.2]} 48. Nf3 {[%clk 0:00:29.1]}
48... Nxg3 {[%clk 0:00:18.3]} 49. Nd4 {[%clk 0:00:28]} 49... Kd6 {[%clk
0:00:17.9]} 50. Kb4 {[%clk 0:00:29.4]} 50... Kd5 {[%clk 0:00:18.4]} 51. Kc3
{[%clk 0:00:30.2]} 51... Ne4+ {[%clk 0:00:18.1]} 52. Kd3 {[%clk 0:00:31.1]}
52... Nf2+ {[%clk 0:00:19.5]} 53. Ke3 {[%clk 0:00:32.1]} 53... Nxh3 {[%clk
0:00:20.1]} 54. Nf3 {[%clk 0:00:33.1]} 54... Kd6 {[%clk 0:00:15.9]} 55. Nh4
{[%clk 0:00:31.2]} 55... Ke7 {[%clk 0:00:11.4]} 56. Kf3 {[%clk 0:00:30.8]} 56...
Kf6 {[%clk 0:00:12.5]} 57. Kg3 {[%clk 0:00:28.5]} 57... Ng1 {[%clk 0:00:12]} 58.
Kf2 {[%clk 0:00:28.5]} 58... Nh3+ {[%clk 0:00:12]} 59. Kg3 {[%clk 0:00:29.2]}
59... Nxf4 {[%clk 0:00:12.9]} 60. Kxf4 {[%clk 0:00:29.9]} 60... e5+ {[%clk
0:00:14]} 61. Kf3 {[%clk 0:00:29.6]} 61... Kg5 {[%clk 0:00:14.7]} 62. Ng2 {[%clk
0:00:30.1]} 62... e4+ {[%clk 0:00:15.6]} 63. Kg3 {[%clk 0:00:30.3]} 63... h5
{[%clk 0:00:15.6]} 64. Nh4 {[%clk 0:00:25.2]} 64... f4+ {[%clk 0:00:16.5]} 65.
Kh3 {[%clk 0:00:26.2]} 65... Kf6 {[%clk 0:00:13.4]} 66. Ng2 {[%clk 0:00:23]}
66... Kf5 {[%clk 0:00:11.5]} 67. Nh4+ {[%clk 0:00:23.1]} 67... Kg5 {[%clk
0:00:08.8]} 68. Ng2 {[%clk 0:00:23.7]} 68... e3 {[%clk 0:00:09.7]} 69. Ne1
{[%clk 0:00:23.2]} 69... Kf5 {[%clk 0:00:10.7]} 70. Nf3 {[%clk 0:00:22.6]} 70...
Ke4 {[%clk 0:00:11.5]} 71. Kg2 {[%clk 0:00:23.7]} 71... Kd3 {[%clk 0:00:09.9]}
72. Kf1 {[%clk 0:00:24.5]} 72... e2+ {[%clk 0:00:09.7]} 73. Kf2 {[%clk
0:00:21.5]} 73... h4 {[%clk 0:00:06.2]} 74. Nxh4 {[%clk 0:00:22]} 74... Kd2
{[%clk 0:00:07.2]} 75. Nf3+ {[%clk 0:00:23]} 75... Kd1 {[%clk 0:00:08.3]} 76.
Ne1 {[%clk 0:00:23.8]} 76... Kd2 {[%clk 0:00:09.1]} 77. Nf3+ {[%clk 0:00:24.6]}
77... Kd1 {[%clk 0:00:09.5]} 78. Ne1 {[%clk 0:00:25.6]} 78... Kd2 {[%clk
0:00:10.7]} 79. Nf3+ {[%clk 0:00:26.3]} 79... Kd3 {[%clk 0:00:11.4]} 80. Ne1+
{[%clk 0:00:26.9]} 80... Kd2 {[%clk 0:00:12.6]} 81. Nf3+ {[%clk 0:00:27.8]}
1/2-1/2

[Event "*** Titled Tuesday Blitz"]
[Site "Chess.com"]
[Date "2019.02.05"]
[Round "10"]
[White "PawnEatingZombie"]
[Black "WorldChampionBulletChess"]
[Result "1-0"]
[WhiteElo "2130"]
[BlackElo "2080"]
[TimeControl "180+2"]
[EndTime "15:31:34 PST"]
[Termination "PawnEatingZombie won by checkmate"]

1. d4 {[%clk 0:03:01.9]} 1... Nf6 {[%clk 0:02:47.5]} 2. c4 {[%clk 0:03:02.7]}
2... e6 {[%clk 0:02:48.6]} 3. Nc3 {[%clk 0:03:03.4]} 3... d5 {[%clk 0:02:50.4]}
4. cxd5 {[%clk 0:03:03.7]} 4... exd5 {[%clk 0:02:51.4]} 5. Bg5 {[%clk
0:03:04.5]} 5... Be7 {[%clk 0:02:53.3]} 6. e3 {[%clk 0:03:05.3]} 6... O-O {[%clk
0:02:54.5]} 7. Bd3 {[%clk 0:03:06.3]} 7... c6 {[%clk 0:02:54.5]} 8. Qc2 {[%clk
0:03:06.3]} 8... Nbd7 {[%clk 0:02:44.6]} 9. Nge2 {[%clk 0:03:06.3]} 9... h6
{[%clk 0:02:35.9]} 10. Bh4 {[%clk 0:03:06.6]} 10... Re8 {[%clk 0:02:32.3]} 11.
f3 {[%clk 0:03:05.2]} 11... Nf8 {[%clk 0:02:33.3]} 12. O-O {[%clk 0:03:03.3]}
12... Ne6 {[%clk 0:02:27.8]} 13. Rad1 {[%clk 0:03:02.6]} 13... b5 {[%clk
0:02:01.9]} 14. Kh1 {[%clk 0:03:01.7]} 14... b4 {[%clk 0:02:02]} 15. Na4 {[%clk
0:03:01.9]} 15... Bd7 {[%clk 0:01:52.1]} 16. h3 {[%clk 0:02:43.8]} 16... Qc8
{[%clk 0:01:05.1]} 17. Bf2 {[%clk 0:02:11.4]} 17... c5 {[%clk 0:01:03.1]} 18.
Nxc5 {[%clk 0:02:11.8]} 18... Nxc5 {[%clk 0:01:05]} 19. dxc5 {[%clk 0:02:12.4]}
19... Qxc5 {[%clk 0:01:06.9]} 20. Qxc5 {[%clk 0:02:12.4]} 20... Bxc5 {[%clk
0:01:08.8]} 21. Nd4 {[%clk 0:02:12.2]} 21... Bxd4 {[%clk 0:01:09.1]} 22. exd4
{[%clk 0:02:13.1]} 22... Rac8 {[%clk 0:01:08.7]} 23. Rc1 {[%clk 0:02:12.3]}
23... Rxc1 {[%clk 0:00:59.4]} 24. Rxc1 {[%clk 0:02:11.9]} 24... Rc8 {[%clk
0:01:01.2]} 25. Rxc8+ {[%clk 0:02:12.5]} 25... Bxc8 {[%clk 0:01:03.1]} 26. Kg1
{[%clk 0:02:09.1]} 26... Kf8 {[%clk 0:01:03.8]} 27. Kf1 {[%clk 0:02:06.7]} 27...
Ke7 {[%clk 0:01:05.1]} 28. Ke2 {[%clk 0:02:07]} 28... Kd6 {[%clk 0:01:06.1]} 29.
Kd2 {[%clk 0:02:07.9]} 29... Nd7 {[%clk 0:01:03.8]} 30. Kc2 {[%clk 0:02:02.5]}
30... Nb6 {[%clk 0:01:03]} 31. Kb3 {[%clk 0:01:55.8]} 31... a5 {[%clk
0:01:01.2]} 32. Bg3+ {[%clk 0:01:50.3]} 32... Kc6 {[%clk 0:00:58.6]} 33. Bf4
{[%clk 0:01:34.1]} 33... Be6 {[%clk 0:00:53.5]} 34. h4 {[%clk 0:01:27.4]} 34...
Nc4 {[%clk 0:00:49.9]} 35. h5 {[%clk 0:01:26.5]} 35... Kb5 {[%clk 0:00:47]} 36.
g4 {[%clk 0:01:00.1]} 36... a4+ {[%clk 0:00:43.7]} 37. Kc2 {[%clk 0:01:01.6]}
37... Kc6 {[%clk 0:00:39.1]} 38. g5 {[%clk 0:00:59.7]} 38... hxg5 {[%clk
0:00:38.6]} 39. Bxg5 {[%clk 0:01:01.2]} 39... f6 {[%clk 0:00:28.1]} 40. Bf4
{[%clk 0:00:31.2]} 40... Na5 {[%clk 0:00:24]} 41. Bc1 {[%clk 0:00:23.8]} 41...
b3+ {[%clk 0:00:24.3]} 42. axb3 {[%clk 0:00:23.1]} 42... Nxb3 {[%clk 0:00:25.6]}
43. Bf4 {[%clk 0:00:23.4]} 43... Nxd4+ {[%clk 0:00:22.2]} 44. Kc3 {[%clk
0:00:22.1]} 44... Nxf3 {[%clk 0:00:22.5]} 45. Kb4 {[%clk 0:00:21.2]} 45... Ne5
{[%clk 0:00:22.5]} 46. Bc2 {[%clk 0:00:20.6]} 46... Nc4 {[%clk 0:00:23.1]} 47.
Bxa4+ {[%clk 0:00:19.3]} 47... Kb6 {[%clk 0:00:23.2]} 48. b3 {[%clk 0:00:20.5]}
48... Na5 {[%clk 0:00:23.7]} 49. Be8 {[%clk 0:00:20.2]} 49... Nc6+ {[%clk
0:00:22.6]} 50. Kc3 {[%clk 0:00:18.9]} 50... Ne7 {[%clk 0:00:22.7]} 51. Be3+
{[%clk 0:00:13.1]} 51... Kc7 {[%clk 0:00:21.5]} 52. Bc5 {[%clk 0:00:14]} 52...
Nf5 {[%clk 0:00:22.2]} 53. Bg6 {[%clk 0:00:13.5]} 53... Ng3 {[%clk 0:00:22.7]}
54. b4 {[%clk 0:00:13.5]} 54... Ne4+ {[%clk 0:00:23.6]} 55. Kd4 {[%clk
0:00:14.4]} 55... Nd6 {[%clk 0:00:21.8]} 56. Ke3 {[%clk 0:00:08.8]} 56... Nb5
{[%clk 0:00:22.6]} 57. Kf4 {[%clk 0:00:09.5]} 57... Kc6 {[%clk 0:00:23.3]} 58.
Bf8 {[%clk 0:00:09.6]} 58... d4 {[%clk 0:00:17]} 59. Bxg7 {[%clk 0:00:10.1]}
59... Nc3 {[%clk 0:00:17]} 60. h6 {[%clk 0:00:09.6]} 60... Ne2+ {[%clk
0:00:17.8]} 61. Kf3 {[%clk 0:00:09.2]} 61... Bg8 {[%clk 0:00:14.8]} 62. Kxe2
{[%clk 0:00:09.4]} 62... Kb5 {[%clk 0:00:15.6]} 63. Bxf6 {[%clk 0:00:07.2]}
63... Kxb4 {[%clk 0:00:15.2]} 64. Kd2 {[%clk 0:00:07.8]} 64... Kc5 {[%clk
0:00:16.4]} 65. h7 {[%clk 0:00:08]} 65... Bxh7 {[%clk 0:00:16.7]} 66. Bxh7
{[%clk 0:00:09.9]} 66... Kd5 {[%clk 0:00:17.8]} 67. Kd3 {[%clk 0:00:10.6]} 67...
Kc5 {[%clk 0:00:19.5]} 68. Bxd4+ {[%clk 0:00:11.8]} 68... Kd5 {[%clk 0:00:21.4]}
69. Be4+ {[%clk 0:00:12.3]} 69... Ke6 {[%clk 0:00:23.3]} 70. Kc4 {[%clk
0:00:13.3]} 70... Kd6 {[%clk 0:00:24.5]} 71. Bc3 {[%clk 0:00:12.5]} 71... Ke6
{[%clk 0:00:26.4]} 72. Kd4 {[%clk 0:00:13.6]} 72... Kd6 {[%clk 0:00:27.8]} 73.
Bb4+ {[%clk 0:00:14.1]} 73... Ke6 {[%clk 0:00:29.3]} 74. Ba3 {[%clk 0:00:13.2]}
74... Kf6 {[%clk 0:00:29.6]} 75. Bc1 {[%clk 0:00:13]} 75... Ke6 {[%clk
0:00:31.5]} 76. Bd5+ {[%clk 0:00:14.3]} 76... Kf6 {[%clk 0:00:33.4]} 77. Ke4
{[%clk 0:00:14.7]} 77... Ke7 {[%clk 0:00:33.8]} 78. Ke5 {[%clk 0:00:15.7]} 78...
Kd7 {[%clk 0:00:34.8]} 79. Be3 {[%clk 0:00:14.8]} 79... Ke7 {[%clk 0:00:35.7]}
80. Bc5+ {[%clk 0:00:15.3]} 80... Kd7 {[%clk 0:00:36.8]} 81. Be4 {[%clk
0:00:15.7]} 81... Kc7 {[%clk 0:00:37.7]} 82. Kd5 {[%clk 0:00:16.7]} 82... Kd7
{[%clk 0:00:38.7]} 83. Bf5+ {[%clk 0:00:17.9]} 83... Kc7 {[%clk 0:00:40.3]} 84.
Bd4 {[%clk 0:00:17.6]} 84... Kb7 {[%clk 0:00:38.6]} 85. Kc5 {[%clk 0:00:18.8]}
85... Kc7 {[%clk 0:00:39.8]} 86. Be5+ {[%clk 0:00:20]} 86... Kb7 {[%clk
0:00:41.1]} 87. Be4+ {[%clk 0:00:20.4]} 87... Ka6 {[%clk 0:00:42.5]} 88. Kc6
{[%clk 0:00:19.9]} 88... Ka5 {[%clk 0:00:44.4]} 89. Bd6 {[%clk 0:00:18.3]} 89...
Ka4 {[%clk 0:00:45.2]} 90. Bd5 {[%clk 0:00:19.6]} 90... Ka5 {[%clk 0:00:44.6]}
91. Bb3 {[%clk 0:00:19.7]} 91... Ka6 {[%clk 0:00:45.2]} 92. Bb4 {[%clk
0:00:20.3]} 92... Ka7 {[%clk 0:00:45.8]} 93. Bc4 {[%clk 0:00:20.2]} 93... Ka8
{[%clk 0:00:46.4]} 94. Kb6 {[%clk 0:00:15.2]} 94... Kb8 {[%clk 0:00:47.5]} 95.
Be6 {[%clk 0:00:16]} 95... Ka8 {[%clk 0:00:48.4]} 96. Bf5 {[%clk 0:00:17.4]}
96... Kb8 {[%clk 0:00:49.8]} 97. Bd6+ {[%clk 0:00:18.6]} 97... Ka8 {[%clk
0:00:50]} 98. Be4# {[%clk 0:00:20.1]} 1-0